fUSD/lending_fUSD_20250623
["ID","MTS","AMOUNT","RATE_DAILY","PERIOD"]
[367267278,1750722684602,-107.37944957,0.00023287,2]
[367267279,1750722684611,-490.0,0.00023287,2]
[367267280,1750722684621,-524.31524252,0.00023287,2]
[367267281,1750722684653,-490.0,0.00021917,2]
[367267282,1750722684664,-490.0,0.00022739,2]
[367267283,1750722684673,-9.11475748,0.00023287,2]
[367267284,1750722684683,-490.0,0.00023287,2]
[367267285,1750722684692,-490.0,0.00023287,2]
[367267286,1750722684702,-685.3,0.00023287,2]
[367267287,1750722684712,-300.0,0.00023287,2]
[367267288,1750722684721,-490.0,0.00023287,2]
[367267289,1750722684730,-490.0,0.00023287,2]
[367267290,1750722684740,-1059.99,0.00023287,2]
[367267291,1750722684749,-1239.33,0.00023287,2]
[367267292,1750722684758,-1225.41,0.00023287,2]
[367267293,1750722684768,-1859.87,0.00023287,2]
[367267294,1750722684777,-747.66,0.00023287,2]
[367267295,1750722684786,-3515.34,0.00023287,2]
[367267296,1750722684796,-490.0,0.00023287,2]
[367267297,1750722684805,-490.0,0.00023287,2]
[367267298,1750722684815,-746.32165433,0.00023287,2]
[367267299,1750722684829,-279.94,0.00023287,2]
[367267300,1750722685247,-490.0,0.00021917,2]
[367267301,1750722685257,-490.0,0.00021917,2]
[367267302,1750722685266,-372.25,0.00021917,2]
[367267303,1750722685278,-127.75,0.00021917,2]
[367267304,1750722685288,-500.0,0.00021917,2]
[367267305,1750722685298,-500.0,0.00021917,2]
[367267306,1750722685307,-298.95468583,0.00022003,2]
[367267307,1750722685320,-205.36728879,0.00022003,2]
[367267308,1750722685331,-141.47999397,0.00022191,2]
[367267309,1750722685356,-348.52000603,0.00022191,2]
[367267310,1750722685366,-490.0,0.00022191,2]
[367267311,1750722685376,-490.0,0.00022191,2]
[367267312,1750722685385,-256.56898607,0.00022191,2]
[367267313,1750722685403,-233.43101393,0.00022191,2]
[367267314,1750722685413,-490.0,0.00022465,2]
[367267315,1750722685424,-490.0,0.00022465,2]
[367267316,1750722685433,-284.79776595,0.00022465,2]
[367267317,1750722685443,-490.0,0.00022739,2]
[367267318,1750722685452,-482.88782935,0.00022739,2]
[367267319,1750722685462,-490.0,0.00023013,2]
[367267320,1750722685472,-861.76,0.00023013,2]
[367267321,1750722685482,-490.0,0.00023013,2]
[367267322,1750722685491,-19375.15168318,0.00023187,2]
[367267323,1750722685502,-1232.16834567,0.00023287,2]
[367267324,1750722685511,-644.73,0.00023287,2]
[367267325,1750722685521,-588.18,0.00023287,2]
[367267326,1750722685531,-1049.17,0.00023287,2]
[367267327,1750722685541,-1516.29,0.00023287,2]
[367267328,1750722685551,-490.0,0.00023287,2]
[367267329,1750722685560,-68697.11,0.00023287,2]
[367267330,1750722685570,-936.03,0.00023287,2]
[367267331,1750722685580,-1139.14,0.00023287,2]
[367267332,1750722685590,-1377.576921,0.00023287,7]
[367267333,1750722685600,-490.0,0.00023287,2]
[367267334,1750722685610,-647.9,0.00023287,2]
[367267335,1750722685620,-803.72,0.00023287,2]
[367267336,1750722685630,-516.62,0.00023287,2]
[367267337,1750722685640,-1134.51,0.00023287,2]
[367267338,1750722685649,-1410.85,0.00023287,2]
[367267339,1750722685659,-498.27,0.00023287,2]
[367267340,1750722685668,-490.0,0.00023287,2]
[367267341,1750722685678,-1377.576921,0.00023287,7]
[367267342,1750722685687,-971.99,0.00023287,2]
[367267343,1750722685698,-490.0,0.00023287,2]
[367267344,1750722685709,-613.92,0.00023287,2]
[367267345,1750722685719,-527.41,0.00023287,2]
[367267346,1750722685728,-490.0,0.00023287,2]
[367267347,1750722685738,-490.0,0.00023287,2]
[367267348,1750722685747,-854.15,0.00023287,2]
[367267349,1750722685757,-1578.51,0.00023287,2]
[367267350,1750722685767,-502.06,0.00023287,2]
[367267351,1750722685777,-1004.78,0.00023287,2]
[367267352,1750722685787,-722.59,0.00023287,2]
[367267353,1750722685796,-1149.68,0.00023287,2]
[367267354,1750722685806,-490.0,0.00023287,2]
[367267355,1750722685816,-1046.97,0.00023287,2]
[367267356,1750722685826,-490.0,0.00023287,2]
[367267357,1750722685841,-615.28621184,0.00023287,2]
[367267358,1750722685851,-490.0,0.00023287,2]
[367267359,1750722685860,-581.05,0.00023287,2]
[367267360,1750722685871,-1200.68,0.00023287,2]
[367267361,1750722685880,-694.62,0.00023287,2]
[367267362,1750722685890,-490.0,0.00023287,2]
[367267363,1750722685900,-4672.05,0.00023287,2]
[367267364,1750722685910,-507.86,0.00023287,2]
[367267365,1750722685920,-684.55,0.00023287,2]
[367267366,1750722685929,-1066.19,0.00023287,2]
[367267367,1750722685939,-4445.32,0.00023287,2]
[367267368,1750722685949,-1782.62,0.00023287,2]
[367267369,1750722685958,-490.0,0.00023287,2]
[367267370,1750722685968,-869.16,0.00023287,2]
[367267371,1750722685977,-490.0,0.00023287,2]
[367267372,1750722685987,-993.54,0.00023287,2]
[367267373,1750722685997,-161.152712,0.00023287,7]
[367267374,1750722686006,-490.0,0.00023287,2]
[367267375,1750722686015,-1775.91,0.00023287,2]
[367267376,1750722686025,-5169.32,0.00023287,2]
[367267377,1750722686035,-775.96,0.00023287,2]
[367267378,1750722686045,-641.17,0.00023287,2]
[367267379,1750722686054,-490.0,0.00023287,2]
[367267380,1750722686064,-1008.32,0.00023287,2]
[367267381,1750722686074,-983.36,0.00023287,2]
[367267382,1750722686083,-490.0,0.00023287,2]
[367267383,1750722686094,-1881.06,0.00023287,2]
[367267384,1750722686103,-829.17,0.00023287,2]
[367267385,1750722686113,-1812.42,0.00023287,2]
[367267386,1750722686122,-834.28,0.00023287,2]
[367267387,1750722686132,-704.39,0.00023287,2]
[367267388,1750722686141,-622.57,0.00023287,2]
[367267389,1750722686151,-857.91,0.00023287,2]
[367267390,1750722686161,-1188.59,0.00023287,2]
[367267391,1750722686170,-495.31,0.00023287,2]
[367267392,1750722686180,-153.756277,0.00023287,7]
[367267393,1750722686190,-798.05,0.00023287,2]
[367267394,1750722686199,-2746.66,0.00023287,2]
[367267395,1750722686209,-490.0,0.00023287,2]
[367267396,1750722686218,-1013.71,0.00023287,2]
[367267397,1750722686228,-153.756277,0.00023287,7]
[367267398,1750722686238,-585.45,0.00023287,2]
[367267399,1750722686248,-769.79,0.00023287,2]
[367267400,1750722686259,-490.0,0.00023287,2]
[367267401,1750722686269,-1102.34,0.00023287,2]
[367267402,1750722686281,-490.0,0.00023287,2]
[367267403,1750722686292,-490.0,0.00023287,2]
[367267404,1750722686303,-793.99,0.00023287,2]
[367267405,1750722686314,-2843.97,0.00023287,2]
[367267406,1750722686324,-490.0,0.00023287,2]
[367267407,1750722686334,-151.0,0.00023287,7]
[367267408,1750722686344,-21749.08,0.00023287,2]
[367267409,1750722686354,-539.92211,0.00023287,2]
[367267410,1750722686363,-700.64,0.00023287,2]
[367267411,1750722686373,-985.74,0.00023287,2]
[367267412,1750722686383,-576.52,0.00023287,2]
[367267413,1750722686393,-702.04,0.00023287,2]
[367267414,1750722686403,-736.73,0.00023287,2]
[367267415,1750722686412,-1301.35,0.00023287,2]
[367267416,1750722686421,-1417.45,0.00023287,2]
[367267417,1750722686431,-490.0,0.00023287,2]
[367267418,1750722686440,-498.78,0.00023287,2]
[367267419,1750722686450,-490.0,0.00023287,2]
[367267420,1750722686460,-519.34,0.00023287,2]
[367267421,1750722686470,-3452.51,0.00023287,2]
[367267422,1750722686480,-642.9,0.00023287,2]
[367267423,1750722686490,-8799.43,0.00023287,2]
[367267424,1750722686499,-662.96,0.00023287,2]
[367267425,1750722686509,-600.19,0.00023287,2]
[367267426,1750722686519,-730.64,0.00023287,2]
[367267427,1750722686529,-639.41,0.00023287,2]
[367267428,1750722686539,-748.1,0.00023287,2]
[367267429,1750722686550,-1130.36,0.00023287,2]
[367267430,1750722686561,-1224.48,0.00023287,2]
[367267431,1750722686571,-1249.16,0.00023287,2]
[367267432,1750722686583,-490.0,0.00023287,2]
[367267433,1750722686594,-945.68,0.00023287,2]
[367267434,1750722686605,-1953.11,0.00023287,2]
[367267435,1750722686616,-1018.92,0.00023287,2]
[367267436,1750722686628,-662.33,0.00023287,2]
[367267437,1750722686638,-2032.29,0.00023287,2]
[367267438,1750722686647,-1017.38,0.00023287,2]
[367267439,1750722686657,-955.04,0.00023287,2]
[367267440,1750722686668,-490.0,0.00023287,2]
[367267441,1750722686678,-598.02,0.00023287,2]
[367267442,1750722686688,-528.13,0.00023287,2]
[367267443,1750722686700,-490.0,0.00023287,2]
[367267444,1750722686711,-490.0,0.00023287,2]
[367267445,1750722686722,-773.09,0.00023287,2]
[367267446,1750722686732,-1383.11,0.00023287,2]
[367267447,1750722686742,-614.35,0.00023287,2]
[367267448,1750722686752,-748.23,0.00023287,2]
[367267449,1750722686762,-714.68,0.00023287,2]
[367267450,1750722686772,-2159.87,0.00023287,2]
[367267451,1750722686781,-743.65,0.00023287,2]
[367267452,1750722686791,-1188.26,0.00023287,2]
[367267453,1750722686802,-568.52,0.00023287,2]
[367267454,1750722686812,-490.0,0.00023287,2]
[367267455,1750722686822,-490.0,0.00023287,2]
[367267456,1750722686832,-3712.65,0.00023287,2]
[367267457,1750722686847,-666.68,0.00023287,2]
[367267458,1750722686856,-6183.08,0.00023287,2]
[367267459,1750722686866,-2265.52,0.00023287,2]
[367267460,1750722686876,-665.97,0.00023287,2]
[367267461,1750722686888,-1772.95,0.00023287,2]
[367267462,1750722686897,-501.76,0.00023287,2]
[367267463,1750722686908,-748.79,0.00023287,2]
[367267464,1750722686919,-490.0,0.00023287,2]
[367267465,1750722686930,-1159.28,0.00023287,2]
[367267466,1750722686940,-490.0,0.00023287,2]
[367267467,1750722686950,-490.0,0.00023287,2]
[367267468,1750722686961,-588.89,0.00023287,2]
[367267469,1750722686971,-3504.75,0.00023287,2]
[367267470,1750722686982,-292.614549,0.00023287,7]
[367267471,1750722686992,-614.49,0.00023287,2]
[367267472,1750722687002,-720.06,0.00023287,2]
[367267473,1750722687012,-682.84,0.00023287,2]
[367267474,1750722687024,-991.61,0.00023287,2]
[367267475,1750722687034,-490.0,0.00023287,2]
[367267476,1750722687044,-1219.28,0.00023287,2]
[367267477,1750722687054,-580.16,0.00023287,2]
[367267478,1750722687064,-490.0,0.00023287,2]
[367267479,1750722687074,-943.5,0.00023287,2]
[367267480,1750722687084,-490.0,0.00023287,2]
[367267481,1750722687094,-490.0,0.00023287,2]
[367267482,1750722687104,-2894.4,0.00023287,2]
[367267483,1750722687113,-2679.66,0.00023287,2]
[367267484,1750722687360,-922.8,0.00023287,2]
[367267485,1750722687371,-344.28499369,0.00023287,2]
[367267486,1750722687381,-1234.77,0.00023287,2]
[367267487,1750722687391,-490.0,0.00023287,2]
[367267488,1750722687401,-1380.74,0.00023287,2]
[367267489,1750722687411,-1053.74,0.00023287,2]
[367267490,1750722687421,-490.0,0.00023287,2]
[367267491,1750722687432,-2030.88,0.00023287,2]
[367267492,1750722687442,-490.0,0.00023287,2]
[367267493,1750722687451,-490.0,0.00023287,2]
[367267494,1750722687461,-684.68,0.00023287,2]
[367267495,1750722687471,-1872.56,0.00023287,2]
[367267496,1750722687480,-490.0,0.00023287,2]
[367267497,1750722687490,-490.0,0.00023287,2]
[367267498,1750722687500,-3876.92,0.00023287,2]
[367267499,1750722687510,-767.49,0.00023287,2]
[367267500,1750722687520,-8470.08,0.00023287,2]
[367267501,1750722687530,-490.0,0.00023287,2]
[367267502,1750722687539,-900.72,0.00023287,2]
[367267503,1750722687549,-654.11,0.00023287,2]
[367267504,1750722687558,-1352.33,0.00023287,2]
[367267505,1750722687568,-1340.74,0.00023287,2]
[367267506,1750722687577,-1097.54,0.00023287,2]
[367267507,1750722687586,-490.0,0.00023287,2]
[367267508,1750722687596,-3230.89,0.00023287,2]
[367267509,1750722687605,-490.0,0.00023287,2]
[367267510,1750722687615,-490.0,0.00023287,2]
[367267511,1750722687624,-866.86,0.00023287,2]
[367267512,1750722687634,-1448.28,0.00023287,2]
[367267513,1750722687645,-490.0,0.00023287,2]
[367267514,1750722687654,-771.53,0.00023287,2]
[367267515,1750722687664,-490.0,0.00023287,2]
[367267516,1750722687674,-490.0,0.00023287,2]
[367267517,1750722687683,-490.0,0.00023287,2]
[367267518,1750722687693,-2349.97,0.00023287,2]
[367267519,1750722687702,-5871.64,0.00023287,2]
[367267520,1750722687711,-537.03,0.00023287,2]
[367267521,1750722687721,-6144.25,0.00023287,2]
[367267522,1750722687730,-490.0,0.00023287,2]
[367267523,1750722687739,-490.0,0.00023287,2]
[367267524,1750722687749,-490.0,0.00023287,2]
[367267525,1750722687758,-490.0,0.00023287,2]
[367267526,1750722687767,-3583.29,0.00023287,2]
[367267527,1750722687777,-656.93,0.00023287,2]
[367267528,1750722687787,-514.78,0.00023287,2]
[367267529,1750722687796,-701.3,0.00023287,2]
[367267530,1750722687806,-693.71,0.00023287,2]
[367267531,1750722687815,-490.0,0.00023287,2]
[367267532,1750722687825,-1008.04,0.00023287,2]
[367267533,1750722687837,-1747.08,0.00023287,2]
[367267534,1750722687847,-2226.86,0.00023287,2]
[367267535,1750722687856,-490.0,0.00023287,2]
[367267536,1750722687866,-923.1,0.00023287,2]
[367267537,1750722687875,-857.2,0.00023287,2]
[367267538,1750722687884,-490.0,0.00023287,2]
[367267539,1750722687893,-895.24,0.00023287,2]
[367267540,1750722687903,-861.76,0.00023287,2]
[367267541,1750722687912,-490.0,0.00023287,2]
[367267542,1750722687922,-507.09,0.00023287,2]
[367267543,1750722687931,-445.78,0.000233,2]
[367267544,1750722687940,-6245.65629074,0.00023309,2]
[367267545,1750722687950,-627.28,0.00023367,2]
[367267546,1750722687960,-9999.99,0.00023368,2]
[367267547,1750722687969,-9999.99,0.00023368,2]
[367267548,1750722687979,-150.99,0.00023368,2]
[367267549,1750722687988,-999.99,0.00023368,2]
[367267550,1750722687997,-299.99,0.00023368,7]
[367267551,1750722688006,-1332.54,0.00023368,2]
[367267552,1750722688016,-163.25747926,0.0002337,2]
[367267553,1750722688025,-151.0,0.00023384,2]
[367267554,1750722688035,-161.87274237,0.00023397,30]
[367267555,1750722688044,-1600.26,0.000234,2]
[367267556,1750722688053,-177.05,0.00023421,2]
[367267557,1750722688063,-175.470343,0.00023422,7]
[367267558,1750722688072,-3084.20117472,0.00023461,2]
[367267559,1750722688082,-450.40816069,0.00023461,2]
[367267560,1750722688092,-1348.609419,0.0002352,4]
[367267561,1750722688101,-6908.35943829,0.00023522,2]
[367267562,1750722688111,-6245.65629074,0.00023522,2]
[367267563,1750722688121,-500.0,0.00023522,2]
[367267564,1750722688131,-500.0,0.00023522,2]
[367267565,1750722688140,-500.0,0.00023522,2]
[367267566,1750722688150,-500.0,0.00023522,2]
[367267567,1750722688160,-500.0,0.00023522,2]
[367267568,1750722688170,-500.0,0.00023522,2]
[367267569,1750722688180,-500.0,0.00023522,2]
[367267570,1750722688190,-500.0,0.00023522,2]
[367267571,1750722688200,-500.0,0.00023522,2]
[367267572,1750722688210,-500.0,0.00023522,2]
[367267573,1750722688219,-500.0,0.00023522,2]
[367267574,1750722688229,-500.0,0.00023522,2]
[367267575,1750722688238,-500.0,0.00023522,2]
[367267576,1750722688248,-500.0,0.00023522,2]
[367267577,1750722688257,-500.0,0.00023522,2]
[367267578,1750722688267,-500.0,0.00023522,2]
[367267579,1750722688277,-500.0,0.00023522,2]
[367267580,1750722688286,-500.0,0.00023522,2]
[367267581,1750722688296,-500.0,0.00023522,2]
[367267582,1750722688305,-500.0,0.00023522,2]
[367267583,1750722688314,-500.0,0.00023522,2]
[367267584,1750722688324,-500.0,0.00023522,2]
[367267585,1750722688333,-500.0,0.00023522,2]
[367267586,1750722688343,-500.0,0.00023522,2]
[367267587,1750722688353,-500.0,0.00023522,2]
[367267588,1750722688362,-500.0,0.00023522,2]
[367267589,1750722688372,-500.0,0.00023522,2]
[367267590,1750722688381,-500.0,0.00023522,2]
[367267591,1750722688391,-500.0,0.00023522,2]
[367267592,1750722688401,-500.0,0.00023522,2]
[367267593,1750722688411,-500.0,0.00023522,2]
[367267594,1750722688420,-500.0,0.00023522,2]
[367267595,1750722688429,-500.0,0.00023522,2]
[367267596,1750722688439,-500.0,0.00023522,2]
[367267597,1750722688449,-500.0,0.00023522,2]
[367267598,1750722688459,-500.0,0.00023522,2]
[367267599,1750722688468,-500.0,0.00023522,2]
[367267600,1750722688478,-500.0,0.00023522,2]
[367267601,1750722688488,-784.0,0.00023522,2]
[367267602,1750722688497,-500.0,0.00023522,2]
[367267603,1750722688507,-500.0,0.00023522,2]
[367267604,1750722688517,-500.0,0.00023522,2]
[367267605,1750722688527,-500.0,0.00023522,2]
[367267606,1750722688537,-500.0,0.00023522,2]
[367267607,1750722688546,-500.0,0.00023522,2]
[367267608,1750722688556,-500.0,0.00023522,2]
[367267609,1750722688566,-500.0,0.00023522,2]
[367267610,1750722688575,-500.0,0.00023522,2]
[367267611,1750722688585,-500.0,0.00023522,2]
[367267612,1750722688595,-500.0,0.00023522,2]
[367267613,1750722688604,-500.0,0.00023522,2]
[367267614,1750722688613,-500.0,0.00023522,2]
[367267615,1750722688626,-500.0,0.00023522,2]
[367267616,1750722688635,-500.0,0.00023522,2]
[367267617,1750722688645,-500.0,0.00023522,2]
[367267618,1750722688655,-500.0,0.00023522,2]
[367267619,1750722688664,-500.0,0.00023522,2]
[367267620,1750722688674,-500.0,0.00023522,2]
[367267621,1750722688686,-500.0,0.00023522,2]
[367267622,1750722688697,-500.0,0.00023522,2]
[367267623,1750722688707,-500.0,0.00023522,2]
[367267624,1750722688718,-500.0,0.00023522,2]
[367267625,1750722688729,-500.0,0.00023522,2]
[367267626,1750722688739,-766.0,0.00023522,2]
[367267627,1750722688750,-500.0,0.00023522,2]
[367267628,1750722688760,-500.0,0.00023522,2]
[367267629,1750722688771,-500.0,0.00023522,2]
[367267630,1750722688781,-500.0,0.00023522,2]
[367267631,1750722688792,-500.0,0.00023522,2]
[367267632,1750722688803,-500.0,0.00023522,2]
[367267633,1750722688814,-500.0,0.00023522,2]
[367267634,1750722688826,-500.0,0.00023522,2]
[367267635,1750722688838,-500.0,0.00023522,2]
[367267636,1750722688848,-500.0,0.00023522,2]
[367267637,1750722688858,-500.0,0.00023522,2]
[367267638,1750722688867,-500.0,0.00023522,2]
[367267639,1750722688876,-500.0,0.00023522,2]
[367267640,1750722688885,-500.0,0.00023522,2]
[367267641,1750722688895,-500.0,0.00023522,2]
[367267642,1750722688904,-500.0,0.00023522,2]
[367267643,1750722688913,-500.0,0.00023522,2]
[367267644,1750722688923,-500.0,0.00023522,2]
[367267645,1750722688934,-500.0,0.00023522,2]
[367267646,1750722688944,-500.0,0.00023522,2]
[367267647,1750722688953,-500.0,0.00023522,2]
[367267648,1750722688962,-500.0,0.00023522,2]
[367267649,1750722688971,-500.0,0.00023522,2]
[367267650,1750722688981,-500.0,0.00023522,2]
[367267651,1750722688991,-500.0,0.00023522,2]
[367267652,1750722688999,-500.0,0.00023522,2]
[367267653,1750722689010,-500.0,0.00023522,2]
[367267654,1750722689019,-500.0,0.00023522,2]
[367267655,1750722689028,-500.0,0.00023522,2]
[367267656,1750722689038,-500.0,0.00023522,2]
[367267657,1750722689047,-500.0,0.00023522,2]
[367267658,1750722689056,-500.0,0.00023522,2]
[367267659,1750722689066,-500.0,0.00023522,2]
[367267660,1750722689075,-500.0,0.00023522,2]
[367267661,1750722689084,-500.0,0.00023522,2]
[367267662,1750722689093,-500.0,0.00023522,2]
[367267663,1750722689103,-500.0,0.00023522,2]
[367267664,1750722689112,-500.0,0.00023522,2]
[367267665,1750722689121,-500.0,0.00023522,2]
[367267666,1750722689130,-500.0,0.00023522,2]
[367267667,1750722689140,-500.0,0.00023522,2]
[367267668,1750722689149,-500.0,0.00023522,2]
[367267669,1750722689159,-500.0,0.00023522,2]
[367267670,1750722689168,-500.0,0.00023522,2]
[367267671,1750722689177,-500.0,0.00023522,2]
[367267672,1750722689187,-500.0,0.00023522,2]
[367267673,1750722689196,-500.0,0.00023522,2]
[367267674,1750722689205,-500.0,0.00023522,2]
[367267675,1750722689215,-500.0,0.00023522,2]
[367267676,1750722689224,-500.0,0.00023522,2]
[367267677,1750722689233,-500.0,0.00023522,2]
[367267678,1750722689243,-500.0,0.00023522,2]
[367267679,1750722689251,-500.0,0.00023522,2]
[367267680,1750722689262,-500.0,0.00023522,2]
[367267681,1750722689271,-500.0,0.00023522,2]
[367267682,1750722689280,-500.0,0.00023522,2]
[367267683,1750722689290,-500.0,0.00023522,2]
[367267684,1750722689299,-500.0,0.00023522,2]
[367267685,1750722689309,-500.0,0.00023522,2]
[367267686,1750722689319,-500.0,0.00023522,2]
[367267687,1750722689328,-500.0,0.00023522,2]
[367267688,1750722689337,-500.0,0.00023522,2]
[367267689,1750722689347,-500.0,0.00023522,2]
[367267690,1750722689356,-500.0,0.00023522,2]
[367267691,1750722689366,-500.0,0.00023522,2]
[367267692,1750722689375,-500.0,0.00023522,2]
[367267693,1750722689385,-500.0,0.00023522,2]
[367267694,1750722689394,-500.0,0.00023522,2]
[367267695,1750722689404,-500.0,0.00023522,2]
[367267696,1750722689413,-500.0,0.00023522,2]
[367267697,1750722689423,-500.0,0.00023522,2]
[367267698,1750722689432,-500.0,0.00023522,2]
[367267699,1750722689441,-500.0,0.00023522,2]
[367267700,1750722689450,-500.0,0.00023522,2]
[367267701,1750722689460,-500.0,0.00023522,2]
[367267702,1750722689469,-500.0,0.00023522,2]
[367267703,1750722689479,-500.0,0.00023522,2]
[367267704,1750722689488,-500.0,0.00023522,2]
[367267705,1750722689498,-500.0,0.00023522,2]
[367267706,1750722689508,-500.0,0.00023522,2]
[367267707,1750722689517,-500.0,0.00023522,2]
[367267708,1750722689527,-500.0,0.00023522,2]
[367267709,1750722689536,-500.0,0.00023522,2]
[367267710,1750722689545,-500.0,0.00023522,2]
[367267711,1750722689555,-500.0,0.00023522,2]
[367267712,1750722689564,-500.0,0.00023522,2]
[367267713,1750722689574,-500.0,0.00023522,2]
[367267714,1750722689583,-500.0,0.00023522,2]
[367267715,1750722689592,-500.0,0.00023522,2]
[367267716,1750722689601,-500.0,0.00023522,2]
[367267717,1750722689611,-500.0,0.00023522,2]
[367267718,1750722689620,-500.0,0.00023522,2]
[367267719,1750722689711,-500.0,0.00023522,2]
[367267720,1750722689721,-500.0,0.00023522,2]
[367267721,1750722689731,-500.0,0.00023522,2]
[367267722,1750722689741,-500.0,0.00023522,2]
[367267723,1750722689751,-500.0,0.00023522,2]
[367267724,1750722689761,-500.0,0.00023522,2]
[367267725,1750722689770,-500.0,0.00023522,2]
[367267726,1750722689779,-500.0,0.00023522,2]
[367267727,1750722689789,-500.0,0.00023522,2]
[367267728,1750722689798,-500.0,0.00023522,2]
[367267729,1750722689807,-500.0,0.00023522,2]
[367267730,1750722689816,-500.0,0.00023522,2]
[367267731,1750722689825,-500.0,0.00023522,2]
[367267732,1750722689834,-500.0,0.00023522,2]
[367267733,1750722689846,-500.0,0.00023522,2]
[367267734,1750722689855,-500.0,0.00023522,2]
[367267735,1750722689864,-500.0,0.00023522,2]
[367267736,1750722689873,-500.0,0.00023522,2]
[367267737,1750722689882,-500.0,0.00023522,2]
[367267738,1750722689892,-500.0,0.00023522,2]
[367267739,1750722689901,-500.0,0.00023522,2]
[367267740,1750722689909,-500.0,0.00023522,2]
[367267741,1750722689918,-500.0,0.00023522,2]
[367267742,1750722689928,-500.0,0.00023522,2]
[367267743,1750722689937,-500.0,0.00023522,2]
[367267744,1750722689946,-500.0,0.00023522,2]
[367267745,1750722689955,-500.0,0.00023522,2]
[367267746,1750722689964,-500.0,0.00023522,2]
[367267747,1750722689973,-500.0,0.00023522,2]
[367267748,1750722689982,-500.0,0.00023522,2]
[367267749,1750722689991,-500.0,0.00023522,2]
[367267750,1750722690000,-500.0,0.00023522,2]
[367267751,1750722690009,-500.0,0.00023522,2]
[367267752,1750722690018,-500.0,0.00023522,2]
[367267753,1750722690027,-500.0,0.00023522,2]
[367267754,1750722690036,-500.0,0.00023522,2]
[367267755,1750722690045,-500.0,0.00023522,2]
[367267756,1750722690055,-500.0,0.00023522,2]
[367267757,1750722690064,-500.0,0.00023522,2]
[367267758,1750722690073,-500.0,0.00023522,2]
[367267759,1750722690083,-500.0,0.00023522,2]
[367267760,1750722690092,-500.0,0.00023522,2]
[367267761,1750722690102,-500.0,0.00023522,2]
[367267762,1750722690111,-500.0,0.00023522,2]
[367267763,1750722690120,-500.0,0.00023522,2]
[367267764,1750722690129,-500.0,0.00023522,2]
[367267765,1750722690139,-500.0,0.00023522,2]
[367267766,1750722690149,-500.0,0.00023522,2]
[367267767,1750722690158,-500.0,0.00023522,2]
[367267768,1750722690168,-500.0,0.00023522,2]
[367267769,1750722690177,-500.0,0.00023522,2]
[367267770,1750722690186,-500.0,0.00023522,2]
[367267771,1750722690196,-500.0,0.00023522,2]
[367267772,1750722690205,-500.0,0.00023522,2]
[367267773,1750722690215,-500.0,0.00023522,2]
[367267774,1750722690224,-500.0,0.00023522,2]
[367267775,1750722690233,-500.0,0.00023522,2]
[367267776,1750722690243,-500.0,0.00023522,2]
[367267777,1750722690252,-500.0,0.00023522,2]